fUSD/lending_fUSD_20240122
["ID","MTS","AMOUNT","RATE_DAILY","PERIOD"]
[312487824,1705927838595,-150.99,0.00028677,2]
[312487825,1705927838605,-816.85,0.00028726,2]
[312487826,1705927838614,-165.72,0.00028767,2]
[312487827,1705927838624,-152.17,0.00029051,2]
[312487828,1705927838634,-250.0,0.00029107,2]
[312487829,1705927838643,-164.9,0.00029189,2]
[312487830,1705927838652,-152.17,0.00029267,2]
[312487831,1705927838665,-675.47,0.00029294,2]
[312487833,1705927838674,-250.0,0.00029421,2]
[312487835,1705927838685,-813.41,0.00029421,2]
[312487837,1705927838695,-152.17,0.00029484,2]
[312487839,1705927838704,-275.86,0.00029552,2]
[312487841,1705927838714,-159.45,0.00029589,2]
[312487843,1705927838723,-152.17,0.000297,2]
[312487845,1705927838732,-408.19,0.00029738,2]
[312487847,1705927838741,-199.25,0.00029758,2]
[312487849,1705927838750,-152.17,0.00029916,2]
[312487851,1705927838759,-151.28,0.00029931,2]
[312487853,1705927838768,-155.0,0.0003,2]
[312487855,1705927838778,-388.09,0.00030037,2]
[312487856,1705927838787,-3648.16301733,0.00030037,4]
[312487858,1705927838797,-966.2,0.00030126,2]
[312487861,1705927838806,-966.2,0.00030126,2]
[312487862,1705927838816,-556.58,0.00030127,2]
[312487865,1705927838825,-152.17,0.00030132,2]
[312487867,1705927838834,-397.03414906,0.00030134,4]
[312487869,1705927838844,-223.28488968,0.00030134,4]
[312487871,1705927838853,-440698.57757904,0.00030136,2]
[312487873,1705927838862,-165.72,0.00030137,2]
[312487875,1705927838871,-158.39,0.00030137,2]
[312487877,1705927838881,-300.12,0.00030195,2]
[312487879,1705927838890,-3191.74123019,0.00030243,2]
[312487881,1705927838899,-152.17,0.00030349,2]
[312487882,1705927838908,-152.17,0.00030565,2]
[312487884,1705927838920,-159.45,0.00030685,2]
[312487886,1705927838930,-296.06,0.000307,2]
[312487888,1705927838939,-3436.08,0.00030771,2]
[312487890,1705927838948,-408.19,0.00030799,2]
[312487892,1705927838957,-160.25,0.00030822,2]
[312487894,1705927838966,-675.47,0.00030938,2]
[312487896,1705927838976,-254.84753284,0.00031407,2]
[312487898,1705927838985,-35988.96954185,0.00031503,2]
[312487899,1705927838994,-165.72,0.00031507,2]
[312487901,1705927839003,-185.2,0.00031644,2]
[312487903,1705927839012,-300.12,0.00031704,2]
[312487905,1705927839022,-3648.16301733,0.00031732,5]
[312487907,1705927839031,-159.45,0.00031781,2]
[312487909,1705927839040,-966.2,0.0003179,2]
[312487911,1705927839049,-158.35484109,0.0003179,2]
[312487913,1705927839058,-156899.608516,0.000318,3]
[312487915,1705927839067,-408.19,0.0003186,2]
[312487917,1705927839076,-155.43063941,0.00032,2]
[312487919,1705927839085,-878.97,0.00032234,2]
[312487921,1705927839095,-154.28,0.00032265,2]
[312487923,1705927839108,-556.58,0.00032391,2]
[312487925,1705927839117,-254.84753281,0.00032498,2]
[312487927,1705927839126,-675.47,0.00032582,2]
[312487929,1705927839135,-181.74,0.00032704,2]
[312487931,1705927839144,-165.72,0.00032877,2]
[312487933,1705927839153,-159.45,0.00032877,2]
[312487935,1705927839162,-165.95,0.00032877,15]
[312487937,1705927839171,-408.19,0.00032921,2]
[312487939,1705927839181,-300.12,0.00033214,2]
[312487941,1705927839190,-3648.16301733,0.00033426,6]
[312487943,1705927839200,-166.59,0.00033499,2]
[312487945,1705927839209,-305.35767525,0.000335,4]
[312487947,1705927839218,-150.0,0.00033559,7]
[312487949,1705927839227,-150.0,0.00033559,7]
[312487951,1705927839236,-150.00000001,0.00033559,7]
[312487953,1705927839246,-150.0,0.00033559,7]
[312487955,1705927839255,-150.0,0.00033559,7]
[312487957,1705927839264,-150.0,0.00033559,7]
[312487959,1705927839275,-150.0,0.00033559,7]
[312487961,1705927839286,-150.0,0.00033559,7]
[312487963,1705927839296,-150.0,0.00033559,7]
[312487965,1705927839306,-150.00000001,0.00033559,7]
[312487967,1705927839315,-150.0,0.00033559,7]
[312487969,1705927839324,-150.0,0.00033559,7]
[312487971,1705927839333,-154.28,0.00033569,2]
[312487973,1705927839342,-254.84753281,0.00033589,2]
[312487975,1705927839351,-159.45,0.00033973,2]
[312487977,1705927839361,-155.0,0.00033998,2]
[312487979,1705927839370,-500.0,0.00034,2]
[312487981,1705927839379,-1000.0,0.00034,4]
[312487983,1705927839388,-150.0,0.00034,2]
[312487985,1705927839397,-675.47,0.00034226,2]
[312487987,1705927839407,-165.72,0.00034247,2]
[312487989,1705927839417,-160.25,0.00034247,2]
[312487991,1705927839426,-610.1887134,0.00034444,4]
[312487992,1705927839435,-1905.75540011,0.00034444,3]
[312487993,1705927839444,-3798.070293,0.0003452,2]
[312487994,1705927839454,-150.0,0.00034548,2]
[312487995,1705927839463,-1700.0,0.000346,12]
[312487996,1705927839473,-966.2,0.00034638,2]
[312487997,1705927839482,-2043.88,0.00034647,2]
[312487998,1705927839492,-2043.88,0.00034647,2]
[312487999,1705927839501,-2043.88,0.00034647,2]
[312488000,1705927839511,-2043.88,0.00034647,2]
[312488001,1705927839520,-2043.88,0.00034647,2]
[312488002,1705927839529,-2043.88,0.00034647,2]
[312488003,1705927839539,-2043.88,0.00034647,2]
[312488004,1705927839548,-2043.88,0.00034647,2]
[312488006,1705927839558,-2043.88,0.00034647,2]
[312488008,1705927839569,-2043.88,0.00034647,2]
[312488010,1705927839578,-101605.0,0.00034648,2]
[312488012,1705927839588,-151.0,0.00034648,7]
[312488014,1705927839598,-556.58,0.00034655,2]
[312488016,1705927839607,-254.84753281,0.00034679,2]
[312488018,1705927839617,-3500.0,0.000347,12]
[312488020,1705927839626,-19825.73639156,0.000347,2]
[312488022,1705927839636,-300.12,0.00034724,2]
[312488024,1705927839646,-5697.10544,0.00034794,2]
[312488026,1705927839656,-5300.0,0.000348,12]
[312488028,1705927839667,-154.28,0.00034873,2]
[312488030,1705927839676,-284.12022017,0.00034898,2]
[312488032,1705927839688,-54746.88817963,0.00034898,7]
[312488034,1705927839697,-152.25070832,0.00034898,2]
[312488036,1705927839707,-172.71378818,0.00034898,2]
[312488038,1705927839716,-330.67528613,0.00034898,8]
[312488040,1705927839725,-558.11286575,0.00034898,24]
[312488042,1705927839735,-437.57675306,0.00034898,2]
[312488044,1705927839745,-433.30496084,0.00034898,2]
[312488046,1705927839755,-4707.15110223,0.00034898,2]
[312488048,1705927839765,-2233.71797447,0.00034898,2]
[312488050,1705927839775,-2617.81765115,0.00034898,2]
[312488053,1705927839785,-151.0,0.00034898,7]
[312488054,1705927839794,-1034785.99258992,0.000349,7]
[312488072,1705927841411,-819.1,0.000349,7]
[312488073,1705927841558,-151.0,0.00034648,7]
[312488074,1705927841567,-151.0,0.00034898,7]
[312488075,1705927841579,-1182.49150425,0.000349,7]
[312488076,1705927841588,-7100.0,0.000349,12]
[312488077,1705927841597,-537.63904531,0.000349,2]
[312488078,1705927841608,-537.63904529,0.000349,2]
[312488079,1705927841617,-151.28,0.0003492,2]
[312488080,1705927841627,-7596.140587,0.00034931,2]
[312488081,1705927841637,-12683.633302,0.00034974,2]
[312488082,1705927841647,-3122.3066039,0.00034974,2]
[312488083,1705927841657,-966.2,0.00034988,2]
[312488084,1705927841667,-966.2,0.00034988,2]
[312488085,1705927841676,-966.2,0.00034988,2]
[312488086,1705927841686,-966.2,0.00034988,2]
[312488087,1705927841695,-966.2,0.00034988,2]
[312488088,1705927841704,-966.2,0.00034988,2]
[312488089,1705927841714,-158.35484109,0.00034988,2]
[312488090,1705927841723,-158.35484109,0.00034988,2]
[312488091,1705927841732,-500.0,0.00034997,2]
[312488092,1705927841742,-181.395404,0.00034997,7]
[312488093,1705927841752,-181.395404,0.00034997,7]
[312488094,1705927841761,-223.378116,0.00034998,7]
[312488095,1705927841771,-151.0,0.00034998,7]
[312488096,1705927841780,-990.0,0.00034998,30]
[312488097,1705927841790,-151.0,0.00034998,7]
[312488098,1705927841799,-151.0,0.00034998,7]
[312488099,1705927841809,-151.0,0.00034998,7]
[312488100,1705927841819,-151.0,0.00034998,7]
[312488101,1705927841829,-151.0,0.00034998,7]
[312488102,1705927841838,-154.07097057,0.00034998,7]
[312488103,1705927841847,-151.0,0.00034998,7]
[312488104,1705927841857,-151.0,0.00034998,7]
[312488105,1705927841866,-151.0,0.00034998,7]
[312488106,1705927841875,-239252.565653,0.00034998,2]
[312488107,1705927841886,-239252.565653,0.00034998,2]
[312488108,1705927841895,-239252.565653,0.00034998,2]
[312488109,1705927841904,-239252.565653,0.00034998,2]
[312488110,1705927841915,-151.0,0.00034998,7]
[312488111,1705927841925,-151.0,0.00034998,7]
[312488112,1705927841936,-151.0,0.00034998,7]
[312488113,1705927841946,-151.0,0.00034998,7]
[312488114,1705927841956,-203.977757,0.00034998,7]
[312488115,1705927841966,-151.0,0.00034998,7]
[312488116,1705927841975,-151.0,0.00034998,7]
[312488117,1705927841984,-151.0,0.00034998,7]
[312488118,1705927841993,-151.0,0.00034998,7]
[312488119,1705927842003,-151.0,0.00034998,7]
[312488120,1705927842013,-151.0,0.00034998,7]
[312488121,1705927842022,-301.966594,0.00034998,7]
[312488122,1705927842032,-151.0,0.00034998,7]
[312488124,1705927842041,-151.0,0.00034998,7]
[312488126,1705927842050,-151.0,0.00034998,7]
[312488128,1705927842059,-224.352407,0.00034998,7]
[312488130,1705927842069,-151.0,0.00034998,7]
[312488132,1705927842078,-278.481452,0.00034998,7]
[312488133,1705927842087,-151.0,0.00034998,7]
[312488134,1705927842101,-151.0,0.00034998,7]
[312488135,1705927842111,-151.0,0.00034998,7]
[312488136,1705927842120,-151.0,0.00034998,7]
[312488137,1705927842129,-151.0,0.00034998,7]
[312488138,1705927842138,-151.0,0.00034998,7]
[312488139,1705927842147,-151.0,0.00034998,7]
[312488140,1705927842157,-151.0,0.00034998,7]
[312488141,1705927842168,-151.0,0.00034998,7]
[312488142,1705927842178,-184.814991,0.00034998,7]
[312488143,1705927842187,-181.395404,0.00034998,7]
[312488144,1705927842196,-181.395404,0.00034998,7]
[312488145,1705927842206,-181.395404,0.00034998,7]
[312488146,1705927842215,-181.395404,0.00034998,7]
[312488147,1705927842225,-181.395404,0.00034998,7]
[312488148,1705927842234,-181.395404,0.00034998,7]
[312488149,1705927842243,-181.395404,0.00034998,7]
[312488150,1705927842252,-181.395404,0.00034998,7]
[312488151,1705927842262,-151.0,0.00034998,7]
[312488152,1705927842271,-151.0,0.00034998,7]
[312488153,1705927842281,-151.0,0.00034998,7]
[312488154,1705927842290,-151.0,0.00034998,7]
[312488155,1705927842300,-151.0,0.00034998,7]
[312488156,1705927842309,-151.0,0.00034998,7]
[312488157,1705927842318,-151.0,0.00034998,7]
[312488158,1705927842327,-151.0,0.00034998,7]
[312488159,1705927842336,-5020.67753495,0.00035,4]
[312488160,1705927842346,-169.0,0.00035,2]
[312488161,1705927842355,-175.92118501,0.00035,2]
[312488162,1705927842364,-2687.12539286,0.00035056,6]
[312488163,1705927842373,-152.88049549,0.00035056,6]
[312488164,1705927842382,-172.65502228,0.00035056,6]
[312488165,1705927842391,-9495.175733,0.00035068,2]
[312488166,1705927842401,-159.45,0.00035068,2]
[312488167,1705927842412,-3648.16301733,0.00035121,7]
[312488168,1705927842422,-152.25070786,0.00035278,2]
[312488169,1705927842431,-300.0,0.000353,7]
[312488170,1705927842440,-2935.004577,0.00035318,2]
[312488171,1705927842450,-13293.246027,0.00035342,2]
[312488172,1705927842459,-155.0,0.00035368,2]
[312488173,1705927842469,-324.04093155,0.00035509,2]
[312488174,1705927842478,-1005.54873497,0.00035509,2]
[312488175,1705927842486,-151.0,0.00035535,7]
[312488176,1705927842495,-151.0,0.00035535,7]
[312488177,1705927842505,-54746.88817954,0.00035535,8]
[312488178,1705927842514,-500.0,0.00035545,2]
[312488179,1705927842523,-166.59,0.00035599,2]
[312488180,1705927842532,-500.0,0.000356,7]
[312488181,1705927842541,-165.72,0.00035616,2]
[312488182,1705927842550,-152.25070786,0.00035658,2]
[312488183,1705927842560,-156.59,0.000357,2]
[312488184,1705927842569,-462.28,0.000357,7]
[312488185,1705927842578,-3206.0,0.000357,3]
[312488186,1705927842587,-181.395404,0.000357,7]
[312488187,1705927842597,-181.395404,0.000357,7]
[312488188,1705927842606,-6608.57,0.000357,2]
[312488189,1705927842615,-254.84753281,0.0003577,2]
[312488190,1705927842624,-27968.0,0.000358,3]
[312488191,1705927842633,-878.97,0.00035816,2]
[312488192,1705927842642,-675.47,0.0003587,2]
[312488193,1705927842652,-1500.0,0.00035888,2]
[312488194,1705927842662,-691.90660157,0.00035896,4]
[312488195,1705927842672,-6306.41321598,0.00035899,4]
[312488196,1705927842680,-152.10268461,0.000359,2]
[312488197,1705927842690,-150.0,0.00035985,2]
[312488198,1705927842907,-5000.0,0.00036,3]
[312488199,1705927842931,-1064.0,0.00036,7]
[312488200,1705927842941,-181.74,0.00036022,2]
[312488201,1705927842950,-537.63904529,0.00036037,2]
[312488202,1705927842960,-152.25070786,0.00036038,2]
[312488203,1705927842969,-500.0,0.00036093,2]
[312488204,1705927842978,-159.45,0.00036164,2]
[312488205,1705927842987,-558.11286573,0.0003617,26]
[312488206,1705927842996,-181.395404,0.00036171,7]
[312488207,1705927843005,-181.395404,0.00036171,7]
[312488208,1705927843015,-151.0,0.00036171,7]
[312488209,1705927843024,-265.124404,0.00036171,7]
[312488210,1705927843033,-54746.88817954,0.00036171,9]
[312488211,1705927843041,-154.28,0.00036176,2]
[312488212,1705927843050,-159.04,0.000362,3]
[312488213,1705927843059,-153.18,0.000362,3]
[312488214,1705927843068,-153.18,0.000362,3]
[312488215,1705927843077,-205.010614,0.000362,7]
[312488217,1705927843086,-151.0,0.000362,7]
[312488219,1705927843096,-875.6,0.000362,3]
[312488221,1705927843107,-875.6,0.000362,3]
[312488223,1705927843116,-875.6,0.000362,3]
[312488225,1705927843125,-875.6,0.000362,3]
[312488227,1705927843134,-875.6,0.000362,3]
[312488229,1705927843143,-875.6,0.000362,3]
[312488231,1705927843152,-875.6,0.000362,3]
[312488233,1705927843163,-875.6,0.000362,3]
[312488235,1705927843173,-875.6,0.000362,3]
[312488237,1705927843182,-875.6,0.000362,3]
[312488239,1705927843191,-875.6,0.000362,3]
[312488242,1705927843201,-875.6,0.000362,3]
[312488245,1705927843210,-875.6,0.000362,3]
[312488247,1705927843219,-875.6,0.000362,3]
[312488249,1705927843228,-875.6,0.000362,3]
[312488252,1705927843238,-875.6,0.000362,3]
[312488253,1705927843247,-875.6,0.000362,3]
[312488254,1705927843256,-875.6,0.000362,3]
[312488256,1705927843267,-875.6,0.000362,3]
[312488257,1705927843277,-875.6,0.000362,3]
[312488258,1705927843286,-300.12,0.00036234,2]
[312488259,1705927843296,-150.0,0.00036258,2]
[312488260,1705927843305,-5725.8,0.00036261,2]
[312488261,1705927843315,-2049.14,0.00036261,30]
[312488262,1705927843324,-1114.32,0.00036261,2]
[312488263,1705927843333,-1211.99039981,0.00036301,30]
[312488264,1705927843343,-169.0,0.00036383,2]
[312488265,1705927843352,-2233.71797447,0.0003639,2]
[312488266,1705927843361,-2617.81765113,0.0003639,2]
[312488267,1705927843370,-437.57675304,0.00036391,2]
[312488268,1705927843379,-433.30496084,0.00036391,2]
[312488269,1705927843389,-1000.0,0.000364,7]
[312488270,1705927843398,-152.25070786,0.00036417,2]
[312488271,1705927843407,-150.0,0.00036431,2]
[312488272,1705927843418,-210.35018475,0.00036435,8]
[312488273,1705927843427,-150.0,0.00036503,2]
[312488274,1705927843437,-150.0,0.00036516,2]
[312488275,1705927843446,-150.0,0.00036537,2]
[312488276,1705927843456,-11847.8723015,0.00036618,2]
[312488277,1705927843466,-9639.56910486,0.00036636,2]
[312488278,1705927843476,-175.53477605,0.00036636,4]
[312488279,1705927843486,-346.84,0.00036641,2]
[312488280,1705927843495,-150.0,0.00036691,2]
[312488281,1705927843504,-150.0,0.00036697,2]
[312488282,1705927843514,-1000.0,0.000367,2]
[312488283,1705927843523,-156.59,0.000367,2]
[312488284,1705927843532,-462.28,0.000367,7]
[312488285,1705927843542,-6608.57,0.000367,3]
[312488286,1705927843551,-150.0,0.00036706,2]
[312488287,1705927843561,-155.0,0.00036738,2]
[312488288,1705927843570,-150.0,0.00036746,2]
[312488289,1705927843580,-150.0,0.00036752,2]
[312488290,1705927843589,-152.25070786,0.00036797,2]
[312488291,1705927843599,-1000.0,0.000368,7]
[312488292,1705927843608,-150.0,0.00036802,2]
[312488293,1705927843617,-54746.88817954,0.00036808,9]
[312488294,1705927843626,-181.395404,0.00036808,7]
[312488295,1705927843635,-181.395404,0.00036808,7]
[312488297,1705927843645,-151.0,0.00036808,7]
[312488299,1705927843654,-3648.16301733,0.00036816,8]
[312488300,1705927843664,-150.0,0.00036883,2]
[312488301,1705927843673,-150.0,0.00036884,2]
[312488302,1705927843682,-8900.0,0.000369,13]
[312488303,1705927843691,-159.0,0.000369,7]
[312488304,1705927843700,-39034.8057,0.00036909,3]
[312488306,1705927843709,-3680.253,0.0003691,2]
[312488308,1705927843718,-151.0,0.0003691,7]
[312488310,1705927843727,-151.0,0.0003691,7]
[312488312,1705927843736,-556.58,0.00036919,2]
[312488314,1705927843745,-150.0,0.00036924,2]
[312488315,1705927843754,-150.0,0.00036933,2]
[312488316,1705927843763,-150.0,0.00036938,2]
[312488317,1705927843772,-150.0,0.0003695,2]
[312488318,1705927843781,-165.72,0.00036986,2]
[312488319,1705927843790,-3000.0,0.0003699,2]
[312488320,1705927843799,-916.39623576,0.0003699,14]
[312488321,1705927843808,-151.0,0.0003699,7]
[312488322,1705927843817,-150.0,0.00036994,2]
[312488323,1705927843826,-155.0,0.00036999,2]
[312488324,1705927843835,-26306.0,0.00037,2]
[312488325,1705927843844,-5839.93650251,0.00037,2]
[312488326,1705927843853,-700.0,0.00037,2]
[312488327,1705927843862,-669.01240215,0.00037,7]
[312488328,1705927843871,-9053.36562767,0.00037,2]
[312488329,1705927843881,-181.395404,0.00037,7]
[312488330,1705927843890,-181.395404,0.00037,7]
[312488331,1705927843900,-150.92,0.00037,2]
[312488332,1705927843909,-150.92,0.00037,2]
[312488333,1705927843920,-150.92,0.00037,2]
[312488334,1705927843929,-150.92,0.00037,2]
[312488335,1705927843938,-150.92,0.00037,2]
[312488336,1705927843947,-150.92,0.00037,2]
[312488337,1705927843956,-150.92,0.00037,2]
[312488338,1705927843966,-150.92,0.00037,2]
[312488339,1705927843975,-150.92,0.00037,2]
[312488340,1705927843985,-150.92,0.00037,2]
[312488341,1705927843994,-150.92,0.00037,2]
[312488342,1705927844003,-150.92,0.00037,2]
[312488343,1705927844012,-150.92,0.00037,2]
[312488344,1705927844022,-150.92,0.00037,2]
[312488345,1705927844031,-150.92,0.00037,2]
[312488346,1705927844041,-150.92,0.00037,2]
[312488347,1705927844050,-150.92,0.00037,2]
[312488348,1705927844059,-150.92,0.00037,2]
[312488349,1705927844068,-150.92,0.00037,2]
[312488350,1705927844078,-150.92,0.00037,2]
[312488351,1705927844087,-150.92,0.00037,2]
[312488352,1705927844099,-150.92,0.00037,2]
[312488353,1705927844112,-150.92,0.00037,2]
[312488354,1705927844122,-150.92,0.00037,2]
[312488355,1705927844131,-150.92,0.00037,2]
[312488356,1705927844141,-150.92,0.00037,2]
[312488357,1705927844150,-150.92,0.00037,2]
[312488358,1705927844162,-150.92,0.00037,2]
[312488359,1705927844171,-150.92,0.00037,2]
[312488360,1705927844182,-150.92,0.00037,2]
[312488361,1705927844192,-150.92,0.00037,2]
[312488362,1705927844201,-150.92,0.00037,2]
[312488363,1705927844212,-150.92,0.00037,2]
[312488364,1705927844221,-150.92,0.00037,2]
[312488365,1705927844231,-150.92,0.00037,2]
[312488366,1705927844241,-150.92,0.00037,2]
[312488367,1705927844250,-150.92,0.00037,2]
[312488368,1705927844259,-150.92,0.00037,2]
[312488369,1705927844268,-150.92,0.00037,2]
[312488370,1705927844277,-150.92,0.00037,2]
[312488371,1705927844286,-150.92,0.00037,2]
[312488372,1705927844295,-150.92,0.00037,2]
[312488373,1705927844304,-150.92,0.00037,2]
[312488374,1705927844314,-150.92,0.00037,2]
[312488375,1705927844323,-150.92,0.00037,2]
[312488376,1705927844332,-150.92,0.00037,2]
[312488377,1705927844341,-150.92,0.00037,2]
[312488378,1705927844350,-150.92,0.00037,2]
[312488379,1705927844360,-150.92,0.00037,2]
[312488380,1705927844369,-150.92,0.00037,2]
[312488381,1705927844383,-178.90676947,0.00037006,4]
[312488382,1705927844402,-203.09146154,0.00037006,4]
[312488383,1705927844417,-731.00118582,0.00037006,4]
[312488384,1705927844435,-709.32799726,0.00037006,4]
[312488385,1705927844452,-694.3172095,0.00037006,2]
[312488386,1705927844468,-331.24747636,0.00037006,4]
[312488387,1705927844481,-297.13181169,0.00037006,4]
[312488388,1705927844496,-150.0,0.00037006,2]
[312488389,1705927844511,-151.0,0.00037006,7]
[312488390,1705927844527,-5340.03221984,0.00037007,2]
[312488391,1705927844543,-417.82270334,0.00037007,4]
[312488392,1705927844559,-1028.69820676,0.00037007,4]
[312488393,1705927844573,-1708.02080546,0.00037007,4]
[312488394,1705927844589,-150.0,0.00037007,2]
[312488395,1705927844606,-150.0,0.00037007,2]
[312488396,1705927844623,-237.650128,0.00037008,7]
[312488397,1705927844635,-237.650128,0.00037008,7]
[312488398,1705927844647,-151.0,0.00037008,7]
[312488399,1705927844664,-1188.57964056,0.00037008,4]
[312488400,1705927844679,-326.80144788,0.00037008,4]
[312488401,1705927844691,-173.65252052,0.00037008,4]
[312488402,1705927844704,-400.0,0.00037008,2]
[312488403,1705927844718,-386.6891831,0.00037008,4]
[312488404,1705927844731,-2963.8992538,0.00037008,4]
[312488405,1705927844744,-156.64412436,0.00037008,4]
[312488406,1705927844763,-2143.98939105,0.00037008,4]
[312488407,1705927844777,-528.74144808,0.00037008,4]
[312488408,1705927844790,-302.00312186,0.00037008,4]
[312488409,1705927844803,-7778.02316605,0.00037008,4]
[312488410,1705927844817,-197.40422307,0.00037008,4]
[312488411,1705927844832,-346.30115323,0.00037008,4]
[312488412,1705927844844,-572.02645008,0.00037008,4]
[312488413,1705927844859,-4562.1975655,0.00037008,4]
[312488414,1705927844872,-283.9901783,0.00037008,2]
[312488415,1705927844885,-10513.08241403,0.00037009,4]
[312488416,1705927844898,-151.0,0.00037009,7]
[312488417,1705927844912,-151.0,0.00037009,7]
[312488418,1705927844926,-68324.42215183,0.0003701,2]
[312488419,1705927844940,-7191.11716615,0.0003701,2]
[312488420,1705927844953,-237.650128,0.0003701,7]
[312488421,1705927844967,-237.650128,0.0003701,7]
[312488422,1705927844983,-151.0,0.0003701,7]
[312488423,1705927844996,-181.395404,0.0003701,7]
[312488424,1705927845009,-181.395412,0.0003701,7]
[312488425,1705927845022,-277.730336,0.0003701,7]
[312488426,1705927845036,-150.0,0.00037029,2]
[312488427,1705927845050,-150.0,0.0003704,2]
[312488428,1705927845063,-150.0,0.00037049,2]
[312488429,1705927845077,-150.0,0.00037061,2]
[312488430,1705927845091,-151.0,0.00037067,7]
[312488431,1705927845106,-151.0,0.00037067,7]
[312488432,1705927845120,-150.0,0.00037081,2]
[312488433,1705927845134,-150.0,0.00037114,2]
[312488434,1705927845147,-150.0,0.00037123,2]
[312488435,1705927845161,-150.0,0.0003715,2]
[312488436,1705927845175,-150.0,0.00037152,2]
[312488437,1705927845190,-152.25070786,0.00037177,2]
[312488438,1705927845203,-150.0,0.00037202,2]
[312488439,1705927845218,-150.0,0.0003723,2]
[312488440,1705927845232,-150.0,0.00037239,2]
[312488441,1705927845247,-159.45,0.0003726,2]
[312488442,1705927845261,-11012.111301,0.00037274,2]
[312488443,1705927845276,-2747.7025501,0.00037274,2]
[312488444,1705927845290,-178.39817792,0.00037276,10]
[312488445,1705927845303,-308.86475483,0.00037284,2]
[312488446,1705927845317,-150.0,0.00037288,7]
[312488447,1705927845330,-150.0,0.00037288,7]
[312488448,1705927845344,-801.0,0.0003729,3]
[312488449,1705927845357,-150.0,0.00037299,2]
[312488450,1705927845371,-150.0,0.00037299,2]
[312488451,1705927845386,-1872642.09426324,0.000373,5]
[312488452,1705927845399,-151.0,0.000373,7]
[312488453,1705927845414,-151.0,0.000373,7]
[312488454,1705927845428,-151.0,0.000373,7]
[312488455,1705927845442,-150.0,0.00037343,2]
[312488456,1705927845456,-150.0,0.00037347,2]
[312488457,1705927845470,-150.0,0.00037361,2]
[312488458,1705927845484,-167.37391,0.00037362,2]
[312488459,1705927845497,-5474.19997,0.00037362,2]
[312488460,1705927845510,-805.009263,0.00037362,2]
[312488461,1705927845523,-176.509549,0.00037362,2]
[312488462,1705927845536,-929.748386,0.00037362,2]
[312488463,1705927845551,-202.552017,0.00037362,2]
[312488464,1705927845564,-150.0,0.00037366,2]
[312488465,1705927845577,-237.650128,0.00037368,7]
[312488466,1705927845591,-237.650128,0.00037368,7]
[312488467,1705927845604,-151.0,0.00037368,7]
[312488468,1705927845618,-151.0,0.00037368,7]
[312488469,1705927845632,-150.0,0.00037372,2]
[312488470,1705927845645,-150.0,0.00037372,2]
[312488471,1705927845659,-4409.3486496,0.00037373,2]
[312488472,1705927845674,-1645.2713952,0.00037373,2]
[312488473,1705927845688,-586.4401184,0.00037373,2]
[312488474,1705927845701,-687.7091444,0.00037373,2]
[312488475,1705927845715,-213892.9171114,0.00037373,2]
[312488476,1705927845727,-151.0,0.00037374,7]
[312488477,1705927845740,-237.650128,0.00037376,7]